fUST/lending_fUST_20250131
["ID","MTS","AMOUNT","RATE_DAILY","PERIOD"]
[351010426,1738284646496,-500.0,0.00016438,2]
[351010427,1738284646506,-500.0,0.00016438,2]
[351010428,1738284646515,-500.0,0.00016438,2]
[351010430,1738284646534,-500.0,0.00016438,2]
[351010432,1738284646546,-500.0,0.00016438,2]
[351010433,1738284646556,-500.0,0.00016438,2]
[351010434,1738284646565,-500.0,0.00016438,2]
[351010435,1738284646575,-500.0,0.00016438,2]
[351010436,1738284646585,-208.66934123,0.00016438,2]
[351010437,1738284646594,-500.0,0.00016438,2]
[351010438,1738284646604,-500.0,0.00016438,2]
[351010439,1738284646613,-500.0,0.00016438,2]
[351010440,1738284646624,-500.0,0.00016438,2]
[351010441,1738284646635,-500.0,0.00016438,2]
[351010442,1738284646645,-500.0,0.00016438,2]
[351010443,1738284646655,-500.0,0.00016438,2]
[351010444,1738284646664,-500.0,0.00016438,2]
[351010445,1738284646676,-500.0,0.00016438,2]
[351010446,1738284646686,-500.0,0.00016438,2]
[351010447,1738284646696,-500.0,0.00016438,2]
[351010448,1738284646706,-1048.1,0.00016438,2]
[351010449,1738284646716,-500.0,0.00016438,2]
[351010450,1738284646727,-666.07,0.00016438,2]
[351010451,1738284646736,-666.07,0.00016438,2]
[351010452,1738284646746,-500.0,0.00016438,2]
[351010453,1738284646758,-500.0,0.00016438,2]
[351010454,1738284646770,-500.0,0.00016438,2]
[351010455,1738284646780,-500.0,0.00016438,2]
[351010456,1738284646790,-500.0,0.00016438,2]
[351010457,1738284646801,-500.0,0.00016438,2]
[351010458,1738284646811,-500.0,0.00016438,2]
[351010459,1738284646820,-1504.35,0.00016438,2]
[351010460,1738284646832,-500.0,0.00016438,2]
[351010461,1738284646842,-500.0,0.00016438,2]
[351010462,1738284646851,-500.0,0.00016438,2]
[351010463,1738284646861,-500.0,0.00016438,2]
[351010464,1738284646871,-500.0,0.00016438,2]
[351010465,1738284646880,-500.0,0.00016438,2]
[351010466,1738284646891,-5069.57,0.00016438,2]
[351010467,1738284646900,-500.0,0.00016438,2]
[351010468,1738284646910,-500.0,0.00016438,2]
[351010469,1738284646923,-1784.88,0.00016438,2]
[351010470,1738284646932,-238.1887172,0.00016438,2]
[351010471,1738284646942,-500.0,0.00016438,2]
[351010472,1738284646952,-500.0,0.00016438,2]
[351010473,1738284646961,-500.0,0.00016438,2]
[351010474,1738284646971,-500.0,0.00016438,2]
[351010475,1738284646980,-500.0,0.00016438,2]
[351010476,1738284646989,-500.0,0.00016438,2]
[351010477,1738284646998,-1001.43,0.00016438,2]
[351010478,1738284647008,-74.08174045,0.00016438,2]
[351010479,1738284647165,-425.91825955,0.00016438,2]
[351010480,1738284647174,-500.0,0.00016438,2]
[351010481,1738284647184,-500.0,0.00016575,2]
[351010482,1738284647193,-500.0,0.00016575,2]
[351010483,1738284647203,-500.0,0.00016575,2]
[351010484,1738284647212,-500.0,0.00016575,2]
[351010485,1738284647222,-500.0,0.00016575,2]
[351010486,1738284647231,-500.0,0.00016575,2]
[351010487,1738284647240,-500.0,0.00016575,2]
[351010488,1738284647251,-500.0,0.00016575,2]
[351010489,1738284647260,-500.0,0.00016575,2]
[351010490,1738284647269,-500.0,0.00016575,2]
[351010491,1738284647279,-500.0,0.00016575,2]
[351010492,1738284647289,-500.0,0.00016575,2]
[351010493,1738284647298,-500.0,0.00016575,2]
[351010494,1738284647308,-500.0,0.00016575,2]
[351010495,1738284647316,-500.0,0.00016575,2]
[351010496,1738284647325,-500.0,0.00016575,2]
[351010497,1738284647334,-1048.1,0.00016575,2]
[351010498,1738284647344,-500.0,0.00016575,2]
[351010499,1738284647353,-500.0,0.00016575,2]
[351010500,1738284647363,-500.0,0.00016575,2]
[351010501,1738284647372,-500.0,0.00016575,2]
[351010502,1738284647382,-500.0,0.00016575,2]
[351010503,1738284647393,-500.0,0.00016575,2]
[351010504,1738284647403,-500.0,0.00016575,2]
[351010505,1738284647412,-1504.35,0.00016575,2]
[351010506,1738284647422,-500.0,0.00016575,2]
[351010507,1738284647432,-500.0,0.00016575,2]
[351010508,1738284647441,-500.0,0.00016575,2]
[351010509,1738284647451,-500.0,0.00016575,2]
[351010510,1738284647460,-500.0,0.00016575,2]
[351010511,1738284647469,-500.0,0.00016575,2]
[351010512,1738284647478,-5069.57,0.00016575,2]
[351010513,1738284647487,-500.0,0.00016575,2]
[351010514,1738284647497,-500.0,0.00016575,2]
[351010515,1738284647506,-1784.88,0.00016575,2]
[351010516,1738284647515,-500.0,0.00016575,2]
[351010517,1738284647524,-500.0,0.00016575,2]
[351010518,1738284647533,-500.0,0.00016575,2]
[351010519,1738284647542,-500.0,0.00016575,2]
[351010520,1738284647551,-337.48644878,0.00016575,2]
[351010521,1738284647560,-500.0,0.00016575,2]
[351010522,1738284647569,-1001.43,0.00016575,2]
[351010523,1738284647579,-627.63548583,0.00016575,2]
[351010524,1738284647588,-500.0,0.00016575,2]
[351010525,1738284647597,-666.07,0.00016711,2]
[351010526,1738284647607,-500.0,0.00016712,2]
[351010527,1738284647616,-500.0,0.00016712,2]
[351010528,1738284647625,-295.31503553,0.00016712,2]
[351010529,1738284647634,-500.0,0.00016712,2]
[351010530,1738284647642,-500.0,0.00016712,2]
[351010531,1738284647651,-500.0,0.00016712,2]
[351010532,1738284647660,-500.0,0.00016712,2]
[351010533,1738284647670,-500.0,0.00016712,2]
[351010534,1738284647679,-500.0,0.00016712,2]
[351010535,1738284647688,-500.0,0.00016712,2]
[351010536,1738284647697,-500.0,0.00016712,2]
[351010537,1738284647707,-500.0,0.00016712,2]
[351010538,1738284647716,-500.0,0.00016712,2]
[351010539,1738284647725,-500.0,0.00016712,2]
[351010540,1738284647734,-174.47,0.00016712,2]
[351010541,1738284647744,-1048.1,0.00016712,2]
[351010542,1738284647757,-500.0,0.00016712,2]
[351010543,1738284647766,-500.0,0.00016712,2]
[351010544,1738284647775,-500.0,0.00016712,2]
[351010545,1738284647785,-500.0,0.00016712,2]
[351010546,1738284647796,-500.0,0.00016712,2]
[351010547,1738284647805,-500.0,0.00016712,2]
[351010548,1738284647814,-500.0,0.00016712,2]
[351010549,1738284647824,-1504.35,0.00016712,2]
[351010550,1738284647835,-500.0,0.00016712,2]
[351010551,1738284647844,-500.0,0.00016712,2]
[351010552,1738284647853,-500.0,0.00016712,2]
[351010553,1738284647862,-500.0,0.00016712,2]
[351010554,1738284647873,-500.0,0.00016712,2]
[351010555,1738284647882,-500.0,0.00016712,2]
[351010556,1738284647891,-5069.57,0.00016712,2]
[351010557,1738284647900,-500.0,0.00016712,2]
[351010558,1738284647911,-500.0,0.00016712,2]
[351010559,1738284647920,-1784.88,0.00016712,2]
[351010560,1738284647930,-500.0,0.00016712,2]
[351010561,1738284647939,-500.0,0.00016712,2]
[351010562,1738284647948,-500.0,0.00016712,2]
[351010563,1738284647958,-500.0,0.00016712,2]
[351010564,1738284647967,-500.0,0.00016712,2]
[351010565,1738284647976,-1001.43,0.00016712,2]
[351010566,1738284647987,-500.0,0.00016712,2]
[351010567,1738284647997,-500.0,0.00016848,2]
[351010568,1738284648007,-303.83683929,0.00016848,2]
[351010569,1738284648016,-500.0,0.00016849,2]
[351010570,1738284648025,-177.99,0.00016849,2]
[351010571,1738284648035,-500.0,0.00016849,2]
[351010572,1738284648044,-500.0,0.00016849,2]
[351010573,1738284648053,-500.0,0.00016849,2]
[351010574,1738284648063,-617.2,0.00016849,2]
[351010575,1738284648072,-500.0,0.00016849,2]
[351010576,1738284648081,-500.0,0.00016849,2]
[351010577,1738284648090,-500.0,0.00016849,2]
[351010578,1738284648099,-500.0,0.00016849,2]
[351010579,1738284648108,-1048.1,0.00016849,2]
[351010580,1738284648117,-500.0,0.00016849,2]
[351010581,1738284648127,-500.0,0.00016849,2]
[351010582,1738284648136,-270.77663693,0.00016849,2]
[351010583,1738284648145,-500.0,0.00016849,2]
[351010584,1738284648154,-500.0,0.00016849,2]
[351010585,1738284648163,-500.0,0.00016849,2]
[351010586,1738284648175,-500.0,0.00016849,2]
[351010587,1738284648185,-1504.35,0.00016849,2]
[351010588,1738284648195,-500.0,0.00016849,2]
[351010589,1738284648205,-500.0,0.00016849,2]
[351010590,1738284648215,-500.0,0.00016849,2]
[351010591,1738284648224,-500.0,0.00016849,2]
[351010592,1738284648234,-500.0,0.00016849,2]
[351010593,1738284648244,-500.0,0.00016849,2]
[351010594,1738284648254,-5069.57,0.00016849,2]
[351010595,1738284648264,-500.0,0.00016849,2]
[351010596,1738284648273,-154.85,0.00016849,2]
[351010597,1738284648283,-1784.88,0.00016849,2]
[351010598,1738284648292,-500.0,0.00016849,2]
[351010599,1738284648301,-500.0,0.00016849,2]
[351010600,1738284648311,-500.0,0.00016849,2]
[351010601,1738284648320,-500.0,0.00016849,2]
[351010602,1738284648330,-500.0,0.00016849,2]
[351010603,1738284648339,-1001.43,0.00016849,2]
[351010604,1738284648348,-500.0,0.00016849,2]
[351010605,1738284648357,-420.0,0.00016971,2]
[351010606,1738284648367,-500.0,0.00016986,2]
[351010607,1738284648376,-500.0,0.00016986,2]
[351010608,1738284648386,-500.0,0.00016986,2]
[351010609,1738284648395,-500.0,0.00016986,2]
[351010610,1738284648404,-289.48,0.00016986,2]
[351010611,1738284648414,-500.0,0.00016986,2]
[351010612,1738284648426,-600.0,0.00016986,2]
[351010613,1738284648435,-1048.1,0.00016986,2]
[351010614,1738284648444,-500.0,0.00016986,2]
[351010615,1738284648454,-500.0,0.00016986,2]
[351010616,1738284648463,-410.37709495,0.00016986,2]
[351010617,1738284648473,-500.0,0.00016986,2]
[351010618,1738284648482,-500.0,0.00016986,2]
[351010619,1738284648491,-500.0,0.00016986,2]
[351010620,1738284648501,-1504.35,0.00016986,2]
[351010621,1738284648510,-500.0,0.00016986,2]
[351010622,1738284648520,-500.0,0.00016986,2]
[351010623,1738284648529,-500.0,0.00016986,2]
[351010624,1738284648539,-500.0,0.00016986,2]
[351010625,1738284648548,-500.0,0.00016986,2]
[351010626,1738284648558,-500.0,0.00016986,2]
[351010627,1738284648568,-5069.57,0.00016986,2]
[351010628,1738284648577,-500.0,0.00016986,2]
[351010629,1738284648587,-1784.88,0.00016986,2]
[351010630,1738284648596,-500.0,0.00016986,2]
[351010631,1738284648606,-500.0,0.00016986,2]
[351010632,1738284648616,-500.0,0.00016986,2]
[351010633,1738284648626,-500.0,0.00016986,2]
[351010634,1738284648636,-500.0,0.00016986,2]
[351010635,1738284648646,-1001.43,0.00016986,2]
[351010636,1738284648656,-500.0,0.00016986,2]
[351010637,1738284648667,-620.37476848,0.00017007,2]
[351010638,1738284648677,-500.0,0.00017123,2]
[351010639,1738284648686,-500.0,0.00017123,2]
[351010640,1738284648696,-500.0,0.00017123,2]
[351010641,1738284648706,-362.16,0.00017123,2]
[351010642,1738284648716,-500.0,0.00017123,2]
[351010643,1738284648725,-1048.1,0.00017123,2]
[351010644,1738284648735,-500.0,0.00017123,2]
[351010645,1738284648745,-500.0,0.00017123,2]
[351010646,1738284648757,-500.0,0.00017123,2]
[351010647,1738284648767,-500.0,0.00017123,2]
[351010648,1738284648777,-1504.35,0.00017123,2]
[351010649,1738284648786,-500.0,0.00017123,2]
[351010650,1738284648796,-500.0,0.00017123,2]
[351010651,1738284648805,-500.0,0.00017123,2]
[351010652,1738284648815,-500.0,0.00017123,2]
[351010653,1738284648825,-500.0,0.00017123,2]
[351010654,1738284648835,-500.0,0.00017123,2]
[351010655,1738284648845,-5069.57,0.00017123,2]
[351010656,1738284648855,-609.02,0.00017123,2]
[351010657,1738284648865,-1784.88,0.00017123,2]
[351010658,1738284648875,-500.0,0.00017123,2]
[351010659,1738284648884,-500.0,0.00017123,2]
[351010660,1738284648895,-500.0,0.00017123,2]
[351010661,1738284648904,-500.0,0.00017123,2]
[351010662,1738284648914,-500.0,0.00017123,2]
[351010663,1738284648925,-1001.43,0.00017123,2]
[351010664,1738284648935,-500.0,0.00017123,2]
[351010665,1738284648945,-666.07,0.00017259,2]
[351010666,1738284648955,-500.0,0.0001726,2]
[351010667,1738284648965,-500.0,0.0001726,2]
[351010668,1738284648974,-267.76,0.0001726,2]
[351010669,1738284648984,-500.0,0.0001726,2]
[351010670,1738284648994,-1048.1,0.0001726,2]
[351010671,1738284649003,-500.0,0.0001726,2]
[351010672,1738284649014,-500.0,0.0001726,2]
[351010673,1738284649023,-500.0,0.0001726,2]
[351010674,1738284649033,-1504.35,0.0001726,2]
[351010675,1738284649042,-500.0,0.0001726,2]
[351010676,1738284649052,-500.0,0.0001726,2]
[351010677,1738284649062,-646.14,0.0001726,2]
[351010678,1738284649071,-500.0,0.0001726,2]
[351010679,1738284649081,-387.0,0.0001726,2]
[351010680,1738284649091,-5069.57,0.0001726,2]
[351010681,1738284649100,-1784.88,0.0001726,2]
[351010682,1738284649109,-500.0,0.0001726,2]
[351010683,1738284649119,-500.0,0.0001726,2]
[351010684,1738284649129,-500.0,0.0001726,2]
[351010685,1738284649139,-1001.43,0.0001726,2]
[351010686,1738284649149,-500.0,0.0001726,2]
[351010687,1738284649160,-500.0,0.00017397,2]
[351010688,1738284649326,-500.0,0.00017397,2]
[351010689,1738284649335,-500.0,0.00017397,2]
[351010690,1738284649345,-1048.1,0.00017397,2]
[351010691,1738284649355,-500.0,0.00017397,2]
[351010692,1738284649364,-500.0,0.00017397,2]
[351010693,1738284649373,-500.0,0.00017397,2]
[351010694,1738284649383,-1504.35,0.00017397,2]
[351010695,1738284649393,-500.0,0.00017397,2]
[351010696,1738284649402,-500.0,0.00017397,2]
[351010697,1738284649413,-500.0,0.00017397,2]
[351010698,1738284649424,-5069.57,0.00017397,2]
[351010699,1738284649434,-1784.88,0.00017397,2]
[351010700,1738284649444,-229.18,0.00017397,2]
[351010701,1738284649453,-326.38,0.00017397,2]
[351010702,1738284649463,-500.0,0.00017397,2]
[351010703,1738284649473,-1001.43,0.00017397,2]
[351010704,1738284649482,-13245.59911628,0.00017438,2]
[351010705,1738284649492,-2783.56975578,0.0001753,2]
[351010706,1738284649503,-341.14613982,0.00017533,2]
[351010707,1738284649513,-500.0,0.00017534,2]
[351010708,1738284649524,-500.0,0.00017534,2]
[351010709,1738284649534,-500.0,0.00017534,2]
[351010710,1738284649543,-1048.1,0.00017534,2]
[351010711,1738284649553,-500.0,0.00017534,2]
[351010712,1738284649562,-500.0,0.00017534,2]
[351010713,1738284649572,-500.0,0.00017534,2]
[351010714,1738284649582,-1504.35,0.00017534,2]
[351010715,1738284649592,-500.0,0.00017534,2]
[351010716,1738284649602,-500.0,0.00017534,2]
[351010717,1738284649612,-500.0,0.00017534,2]
[351010718,1738284649622,-5069.57,0.00017534,2]
[351010719,1738284649631,-1784.88,0.00017534,2]
[351010720,1738284649640,-500.0,0.00017534,2]
[351010721,1738284649650,-1001.43,0.00017534,2]
[351010722,1738284649659,-500.0,0.00017543,2]
[351010723,1738284649669,-155.81,0.00017671,2]
[351010724,1738284649678,-500.0,0.00017671,2]
[351010725,1738284649687,-500.0,0.00017671,2]
[351010726,1738284649698,-1048.1,0.00017671,2]
[351010727,1738284649708,-500.0,0.00017671,2]
[351010728,1738284649718,-500.0,0.00017671,2]
[351010729,1738284649727,-500.0,0.00017671,2]
[351010730,1738284649736,-1504.35,0.00017671,2]
[351010731,1738284649746,-500.0,0.00017671,2]
[351010732,1738284649759,-500.0,0.00017671,2]
[351010733,1738284649768,-500.0,0.00017671,2]
[351010734,1738284649778,-5069.57,0.00017671,2]
[351010735,1738284649787,-1784.88,0.00017671,2]
[351010736,1738284649797,-500.0,0.00017671,2]
[351010737,1738284649807,-1001.43,0.00017671,2]
[351010738,1738284649816,-666.07,0.00017807,2]
[351010739,1738284649827,-500.0,0.00017808,2]
[351010740,1738284649837,-500.0,0.00017808,2]
[351010741,1738284649846,-1048.1,0.00017808,2]
[351010742,1738284649855,-500.0,0.00017808,2]
[351010743,1738284649865,-500.0,0.00017808,2]
[351010744,1738284649875,-500.0,0.00017808,2]
[351010745,1738284649884,-1504.35,0.00017808,2]
[351010746,1738284649894,-500.0,0.00017808,2]
[351010747,1738284649903,-500.0,0.00017808,2]
[351010748,1738284649913,-500.0,0.00017808,2]
[351010749,1738284649923,-5069.57,0.00017808,2]
[351010750,1738284649933,-1784.88,0.00017808,2]
[351010751,1738284649942,-500.0,0.00017808,2]
[351010752,1738284649955,-1001.43,0.00017808,2]
[351010753,1738284649967,-537.88,0.00017945,2]
[351010754,1738284649976,-205.62,0.00017945,2]
[351010755,1738284649986,-1048.1,0.00017945,2]
[351010756,1738284649995,-500.0,0.00017945,2]
[351010757,1738284650006,-500.0,0.00017945,2]
[351010758,1738284650015,-500.0,0.00017945,2]
[351010759,1738284650025,-1504.35,0.00017945,2]
[351010760,1738284650035,-500.0,0.00017945,2]
[351010761,1738284650044,-500.0,0.00017945,2]
[351010762,1738284650053,-500.0,0.00017945,2]
[351010763,1738284650064,-5069.57,0.00017945,2]
[351010764,1738284650075,-1784.88,0.00017945,2]
[351010765,1738284650085,-500.0,0.00017945,2]
[351010766,1738284650095,-1001.43,0.00017945,2]
[351010767,1738284650104,-666.07,0.00017999,2]
[351010768,1738284650114,-17100.0,0.00018,2]
[351010769,1738284650123,-1048.1,0.00018082,2]
[351010770,1738284650132,-500.0,0.00018082,2]
[351010771,1738284650143,-513.3672065,0.00018082,2]
[351010772,1738284650152,-500.0,0.00018082,2]
[351010773,1738284650163,-1504.35,0.00018082,2]
[351010774,1738284650173,-500.0,0.00018082,2]
[351010775,1738284650182,-500.0,0.00018082,2]
[351010776,1738284650192,-500.0,0.00018082,2]
[351010777,1738284650202,-5069.57,0.00018082,2]
[351010778,1738284650212,-1784.88,0.00018082,2]
[351010779,1738284650222,-500.0,0.00018082,2]
[351010780,1738284650231,-1001.43,0.00018082,2]
[351010781,1738284650241,-500.0,0.00018091,2]
[351010782,1738284650251,-1048.1,0.00018219,2]
[351010783,1738284650260,-500.0,0.00018219,2]
[351010784,1738284650270,-500.0,0.00018219,2]
[351010785,1738284650280,-1504.35,0.00018219,2]
[351010786,1738284650290,-500.0,0.00018219,2]
[351010787,1738284650299,-500.0,0.00018219,2]
[351010788,1738284650310,-500.0,0.00018219,2]
[351010789,1738284650320,-5069.57,0.00018219,2]
[351010790,1738284650329,-1784.88,0.00018219,2]
[351010791,1738284650338,-500.0,0.00018219,2]
[351010792,1738284650348,-1001.43,0.00018219,2]
[351010793,1738284650358,-396.099,0.0001833,2]
[351010794,1738284650368,-1048.1,0.00018356,2]
[351010795,1738284650378,-500.0,0.00018356,2]
[351010796,1738284650393,-500.0,0.00018356,2]
[351010797,1738284650402,-1504.35,0.00018356,2]
[351010798,1738284650417,-153.62,0.00018356,2]
[351010799,1738284650428,-500.0,0.00018356,2]
[351010800,1738284650437,-500.0,0.00018356,2]
[351010801,1738284650447,-5069.57,0.00018356,2]
[351010802,1738284650456,-1784.88,0.00018356,2]
[351010803,1738284650466,-500.0,0.00018356,2]
[351010804,1738284650475,-1001.43,0.00018356,2]
[351010805,1738284650484,-666.07,0.00018492,2]
[351010806,1738284650494,-1048.1,0.00018493,2]
[351010807,1738284650503,-500.0,0.00018493,2]
[351010808,1738284650513,-500.0,0.00018493,2]
[351010809,1738284650522,-1504.35,0.00018493,2]
[351010810,1738284650532,-628.92,0.00018493,2]
[351010811,1738284650541,-500.0,0.00018493,2]
[351010812,1738284650551,-5069.57,0.00018493,2]
[351010813,1738284650561,-1784.88,0.00018493,2]
[351010814,1738284650571,-500.0,0.00018493,2]
[351010815,1738284650581,-1001.43,0.00018493,2]
[351010816,1738284650590,-500.0,0.00018548,2]
[351010817,1738284650600,-587.0,0.00018564,2]
[351010818,1738284650609,-155.84,0.000186,2]
[351010819,1738284650619,-1048.1,0.0001863,2]
[351010820,1738284650629,-500.0,0.0001863,2]
[351010821,1738284650639,-500.0,0.0001863,2]
[351010822,1738284650649,-1504.35,0.0001863,2]
[351010823,1738284650658,-500.0,0.0001863,2]
[351010824,1738284650670,-5069.57,0.0001863,2]
[351010825,1738284650680,-1784.88,0.0001863,2]
[351010826,1738284650690,-235.12,0.0001863,2]
[351010827,1738284650700,-1001.43,0.0001863,2]
[351010828,1738284650710,-1048.1,0.00018767,2]
[351010829,1738284650720,-500.0,0.00018767,2]
[351010830,1738284650730,-162.83,0.00018767,2]
[351010831,1738284650740,-1504.35,0.00018767,2]
[351010832,1738284650750,-500.0,0.00018767,2]
[351010833,1738284650763,-5069.57,0.00018767,2]
[351010834,1738284650773,-1784.88,0.00018767,2]
[351010835,1738284650783,-1001.43,0.00018767,2]
[351010836,1738284650792,-2018.049,0.00018823,2]
[351010837,1738284650802,-2302.0,0.00018823,2]
[351010838,1738284650812,-248.991,0.00018823,2]
[351010839,1738284650822,-395.0,0.00018823,2]
[351010840,1738284650833,-231.13,0.00018823,2]
[351010841,1738284650845,-256.68828288,0.000189,2]
[351010842,1738284650855,-1048.1,0.00018904,2]
[351010843,1738284650866,-500.0,0.00018904,2]
[351010844,1738284650875,-1504.35,0.00018904,2]
[351010845,1738284650885,-591.36,0.00018904,2]
[351010846,1738284650896,-5069.57,0.00018904,2]
[351010847,1738284650906,-1784.88,0.00018904,2]
[351010848,1738284650916,-1001.43,0.00018904,2]
[351010849,1738284650927,-4913.11642077,0.00019,4]
[351010850,1738284650937,-302.96970909,0.00019,2]
[351010851,1738284650948,-666.07,0.0001904,2]
[351010852,1738284650958,-1048.1,0.00019041,2]
[351010853,1738284650971,-500.0,0.00019041,2]
[351010854,1738284650991,-1504.35,0.00019041,2]
[351010855,1738284651027,-5069.57,0.00019041,2]
[351010856,1738284651037,-1784.88,0.00019041,2]
[351010857,1738284651046,-1001.43,0.00019041,2]
[351010858,1738284651056,-666.07,0.0001909,2]
[351010859,1738284651065,-25898.57434568,0.00019091,2]
[351010860,1738284651074,-538.23295881,0.00019177,4]
[351010861,1738284651084,-500.0,0.00019178,7]
[351010862,1738284651093,-1048.1,0.00019178,2]
[351010863,1738284651102,-500.0,0.00019178,2]
[351010864,1738284651111,-499.0,0.00019178,2]
[351010865,1738284651121,-1504.35,0.00019178,2]
[351010866,1738284651131,-5069.57,0.00019178,2]
[351010867,1738284651140,-1784.88,0.00019178,2]
[351010868,1738284651150,-1001.43,0.00019178,2]
[351010869,1738284651159,-177.529613,0.00019178,2]
[351010870,1738284651169,-302.96970909,0.0001919,2]
[351010871,1738284651178,-1048.1,0.00019315,2]
[351010872,1738284651187,-500.0,0.00019315,2]
[351010873,1738284651196,-1504.35,0.00019315,2]
[351010874,1738284651205,-5069.57,0.00019315,2]
[351010875,1738284651215,-1784.88,0.00019315,2]
[351010876,1738284651224,-1001.43,0.00019315,2]
[351010877,1738284651234,-302.96970909,0.0001938,2]
[351010878,1738284651243,-1048.1,0.00019452,2]
[351010879,1738284651253,-458.2,0.00019452,2]
[351010880,1738284651263,-1504.35,0.00019452,2]
[351010881,1738284651272,-1275.22094275,0.00019452,2]
[351010883,1738284752374,6732.0,0.00020453,120]
[351010884,1738284805103,3077.48704285,0.00020453,120]
[351010885,1738285133023,541.39,0.00018,30]
[351010886,1738285481119,160.789299,0.00013973,2]
[351010887,1738285611585,250.0,0.00017,30]
[351010888,1738285611962,250.0,0.00015,30]
[351010889,1738285612291,250.0,0.00013,30]
[351010890,1738285612892,250.0,0.00011,30]
[351010891,1738285613289,250.0,9e-05,30]
[351010892,1738285613665,250.0,7e-05,30]
[351010893,1738285613940,250.0,5e-05,30]
[351010894,1738285614305,292.56905,3e-05,30]
[351010913,1738285832864,-300.0,0.00015539,2]
[351010914,1738285832874,-116.0,0.0001554,2]
[351010915,1738285832886,-21770.25282544,0.0001554,2]
[351010916,1738285834659,-8609.29069416,0.0001554,2]
[351010917,1738285834669,-7185.61430189,0.00015643,2]
[351010951,1738285838765,-17714.38569811,0.00015643,2]
[351010953,1738285838775,-18038.30755379,0.000158,2]
[351010955,1738285838785,-562.18023,0.00016437,2]
[351010957,1738285838795,-500.0,0.00016438,2]
[351010959,1738285838805,-500.0,0.00016438,2]
[351010961,1738285838814,-332.07376912,0.00016438,2]
[351010963,1738285838823,-500.0,0.00016438,2]
[351010964,1738285838832,-500.0,0.00016438,2]
[351010966,1738285838841,-502.33923035,0.00016438,2]
[351010968,1738285838851,-500.0,0.00016438,2]
[351010970,1738285838860,-500.0,0.00016438,2]
[351010972,1738285838870,-500.0,0.00016438,2]
[351010973,1738285838879,-425.06445523,0.00016438,2]
[351010974,1738285838888,-500.0,0.00016438,2]
[351010976,1738285838898,-500.0,0.00016438,2]
[351010977,1738285838907,-500.0,0.00016438,2]
[351010979,1738285838916,-500.0,0.00016438,2]
[351010980,1738285838926,-500.0,0.00016438,2]
[351010982,1738285838936,-500.0,0.00016438,2]
[351010983,1738285838945,-628.86,0.00016438,2]
[351010984,1738285838954,-500.0,0.00016438,2]
[351010985,1738285838963,-394.09469254,0.00016438,2]
[351010986,1738285838974,-500.0,0.00016438,2]
[351010987,1738285838983,-500.0,0.00016438,2]
[351010988,1738285838992,-500.0,0.00016438,2]
[351010989,1738285839002,-500.0,0.00016438,2]
[351010990,1738285839012,-500.0,0.00016438,2]
[351010991,1738285839022,-500.0,0.00016438,2]
[351010992,1738285839031,-500.0,0.00016438,2]